Cogmind - Beta 15 *** ADVENTURER MODE // 2025.05.16 @ 20:37:10 Player: Vidali Result: Self-destructed Performance ------------- Evolutions (2) 1000 Regions Visited (3) 600 Robots Destroyed (13) 65 Value Destroyed (367) 367 Prototype IDs (5) 100 Alien Tech Used (0) 0 Bonus (0) 0 TOTAL SCORE: 2132 Bonus ------- None Cogmind --------- Core Integrity 550/550 Matter 161/300 Energy 100/100 System Corruption 0% Temperature Cool (0) Movement Core (50) Location -8/Materials Parts ------- > --- POWER (1) -------- (None) > --- PROPULSION (2) --- (None) > --- UTILITY (6) ------ Signal Interpreter Transport Network Coupler > --- WEAPON (2) ------- (None) > --- INVENTORY (5) ---- Light Nuclear Core Small Storage Unit Structural Scanner Datajack Peak State ------------ > --- POWER ------------ (None) > --- PROPULSION ------- (None) > --- UTILITY ---------- Signal Interpreter Transport Network Coupler > --- WEAPON ----------- Assault Rifle Assault Rifle > --- INVENTORY -------- Light Ion Engine Small Storage Unit Structural Scanner Datajack [Rating: 4] Favorites ----------- Power None Propulsion None Utility Signal Interpreter Processor Signal Interpreter Weapon Assault Rifle Ballistic Gun Assault Rifle Launcher Subdweller Shrapnel Launcher Build | -11 -10 -10 -8 ------- Run | Yrd Mat Sub Mat Slots Evolved 4 | . . . 4 Power . | . . . . Propulsion . | . . . . Utility 4 | . . . 4 Weapon . | . . . . Parts Attached 5 | . 4 1 . Power . | . . . . Engine . | . . . . Core . | . . . . Reactor . | . . . . Propulsion . | . . . . Treads . | . . . . Leg . | . . . . Wheel . | . . . . Hover . | . . . . Flight . | . . . . Utility 2 | . 2 . . Device . | . . . . Storage . | . . . . Processor 2 | . 2 . . Hackware . | . . . . Protection . | . . . . Artifact . | . . . . Weapon 3 | . 2 1 . Energy Gun . | . . . . Energy Cannon . | . . . . Ballistic Gun 2 | . 2 . . Ballistic Cannon . | . . . . Launcher 1 | . . 1 . Special Weapon . | . . . . Impact Weapon . | . . . . Slashing Weapon . | . . . . Piercing Weapon . | . . . . Special Melee Weapon . | . . . . Unidentified Prototypes . | . . . . Parts Lost 3 | . . 3 . Power . | . . . . Propulsion . | . . . . Utility . | . . . . Weapon 3 | . . 3 . Highest Loss Streak 2 | . . 2 . To Critical Strikes . | . . . . Average Backups 4 | 2 4 4 4 Power . | . 1 1 1 Propulsion . | . . . . Utility 1 | . 1 2 2 Weapon . | 1 1 . . Tool/Special . | . . . . Unused Backups 6 | . 2 . 4 Power 2 | . 1 . 1 Propulsion 1 | . 1 . . Utility 2 | . . . 2 Weapon . | . . . . Tool/Special 1 | . . . 1 Average Slot Usage (%) 36 | . 33 41 18 Processor 23 | . 19 28 18 Ballistic Gun 9 | . 13 4 . Launcher 3 | . . 8 . Peak Build Rating 4 | . 4 4 2 Average Rating 2 | . 2 3 2 On Entrance 1 | . . 3 2 Naked Turns 22 | . 22 . . Heaviest Build 8 | . 2 8 . Greatest Support 3 | 3 3 3 3 Greatest Overweight (x) 2 | . . 2 . Average Overweight (x) . | . . . . Largest Inventory Capacity 5 | 5 5 5 5 Average Capacity 5 | 5 5 5 5 Most Carried 5 | 5 5 5 4 Average Carried 4 | 3 4 4 4 Final Capacity 5 | 5 5 5 5 Final Carried 5 | 5 5 4 4 Class Distribution -------------------- 100% | Mutant Dominant Class ---------------- Mutant | -10/Materials Mutant | -10/Subcaves Mutant | -8/Materials Resources | -11 -10 -10 -8 ----------- Run | Yrd Mat Sub Mat Matter Collected 399 | 200 134 65 . Remotely . | . . . . Salvage Created 383 | . 297 86 . Parts 28 | . 19 9 . Haulers Intercepted 2 | . 2 . . Recyclers Shooed . | . . . . Parts Field Recycled . | . . . . Retrieved Matter . | . . . . Parts Self-Destructed 4 | . . 4 . Prevented . | . . . . Kills | -11 -10 -10 -8 ------- Run | Yrd Mat Sub Mat Combat Hostiles Destroyed 8 | . 3 5 . Guns 4 | . 3 1 . AOE 4 | . . 4 . Classes Destroyed 4 | . 3 1 . Hauler 2 | . 2 . . Watcher 3 | . 3 . . Grunt 3 | . 3 . . Subdweller 5 | . . 5 . Best Kill Streak 3 | . 3 3 . Combat Bots Only 3 | . 2 3 . Max Kills in Single Turn 1 | . 1 1 . Gunslinging . | . . . . Exploded 1 | . . 1 . Melee . | . . . . Uniques/NPCs Destroyed . | . . . . Combat | -11 -10 -10 -8 -------- Run | Yrd Mat Sub Mat Hostile Shots Fired 34 | . 17 17 . Missed 13 | . 8 5 . Hits 21 | . 9 12 . Projectile 21 | . 9 12 . AOE 6 | . . 6 . Damage Taken 486 | . 117 369 . Core 196 | . 71 125 . Absorbed by Shields . | . . . . Ignored by Resistances 137 | . 34 103 . Core Remaining (%) 60 | 100 . 21 . Volleys Fired 37 | . 21 16 . Largest 2 | . 2 2 . Hottest 40 | . 40 40 . Shots Fired 49 | . 28 21 . Gun 41 | . 28 13 . Cannon . | . . . . Launcher 8 | . . 8 . Special . | . . . . Kinetic 49 | . 28 21 . Thermal . | . . . . Explosive . | . . . . Electromagnetic . | . . . . Robot Hit Streak 22 | . 11 22 . Robot Miss Streak 2 | . 2 1 . Penetration Max . | . . . . Secondary Targets . | . . . . Shots Hit Robots 43 | . 24 19 . Core Hits 22 | . 14 8 . Critical Kills . | . . . . Critical Parts Destroyed . | . . . . Critical Strikes 1 | . . 1 . Destroy 1 | . . 1 . Melee Attacks . | . . . . Impact . | . . . . Slashing . | . . . . Piercing . | . . . . Sneak Attacks . | . . . . Combat Hostiles . | . . . . Follow-up Attacks . | . . . . Damage Inflicted 1075 | . 306 769 . Guns 450 | . 306 144 . Cannons . | . . . . Explosions 625 | . . 625 . Melee . | . . . . Ramming . | . . . . Kinetic 1075 | . 306 769 . Thermal . | . . . . Explosive . | . . . . Electromagnetic . | . . . . Impact . | . . . . Slashing . | . . . . Piercing . | . . . . Highest Corruption . | . . . . Average Corruption . | . . . . Corruption Purged . | . . . . Corruption Blocked . | . . . . Overload Shots . | . . . . Overflow Damage . | . . . . Projectiles . | . . . . Explosions . | . . . . Melee . | . . . . Knockbacks . | . . . . Impact . | . . . . Kinetic . | . . . . Secondary . | . . . . Self-Inflicted Damage . | . . . . Shots . | . . . . Rammed . | . . . . Targets Rammed . | . . . . Kicked . | . . . . Crushed . | . . . . Highest Temperature 10 | . 10 . . Average Temperature 6 | . 6 . . Received Heat Transfer 96 | . 66 30 . Siege Activations . | . . . . Martial Activations . | . . . . Shielding Activations . | . . . . Robots Disrupted . | . . . . Combat Hostiles . | . . . . Robots Corrupted . | . . . . Combat Hostiles . | . . . . Parts Fried . | . . . . Impact Corruptions . | . . . . Robots Melted . | . . . . Combat Hostiles . | . . . . Parts Melted . | . . . . Heat Transferred . | . . . . Parts Sabotaged . | . . . . Parts Stolen . | . . . . Parts Stripped . | . . . . Power Chain Reactions . | . . . . Alert | -11 -10 -10 -8 ------- Run | Yrd Mat Sub Mat Maximum Alert Level . | . . . . Low Security (%) 100 | 100 100 . 100 Level 1 . | . . . . Level 2 . | . . . . Level 3 . | . . . . Level 4 . | . . . . Level 5 . | . . . . High Security . | . . . . Max Security . | . . . . Peak Influence 50 | . 50 . . Initial . | . . . . Average 10 | . 11 . . Influence Increases 125 | . 125 . . Destroy 0b10 Robot/C 60 | . 60 . . Destroy 0b10 Robot/NC 25 | . 25 . . Destroy Leader 30 | . 30 . . Successful Hack 10 | . 10 . . Influence Decreases 125 | . 125 . . Time Decay 125 | . 125 . . Squads Dispatched 1 | . 1 . . Investigation 1 | . 1 . . Extermination . | . . . . Reinforcement . | . . . . Assault . | . . . . Garrison . | . . . . Intercept . | . . . . Searches Triggered . | . . . . Construction Impeded . | . . . . Haulers Reinforced . | . . . . Active Scanning Responses . | . . . . Cargo Convoy Interrupts . | . . . . Stealth | -11 -10 -10 -8 --------- Run | Yrd Mat Sub Mat Distress Signals . | . . . . Communications Jammed . | . . . . Distress Signals . | . . . . Times Spotted 14 | . 6 7 1 Peak Tracking Total 3 | . 3 2 1 Tactical Retreats . | . . . . Traps | -11 -10 -10 -8 ------- Run | Yrd Mat Sub Mat Traps Triggered 2 | . 2 . . Indirectly . | . . . . Trap Hack Attempts . | . . . . Triggered . | . . . . Disarmed . | . . . . Reprogrammed . | . . . . Reused . | . . . . Traps Extracted . | . . . . Installed . | . . . . Triggered . | . . . . Machines | -11 -10 -10 -8 ---------- Run | Yrd Mat Sub Mat Machines Disabled . | . . . . Max in Single Turn . | . . . . Machines Repaired . | . . . . Machines Dismantled . | . . . . Machines Sabotaged . | . . . . Overloaded Fab Kills . | . . . . Hacking | -11 -10 -10 -8 --------- Run | Yrd Mat Sub Mat Machines Accessed 7 | . 7 . . Terminals 7 | . 7 . . Fabricators . | . . . . Repair Stations . | . . . . Recycling Units . | . . . . Scanalyzers . | . . . . Garrison Access . | . . . . Total Hacks 24 | . 24 . . Successful 13 | . 13 . . Failed 10 | . 10 . . Catastrophic 1 | . 1 . . Database Lockouts 1 | . 1 . . Manual 21 | . 21 . . Terminals 24 | . 24 . . Fabricators . | . . . . Repair Stations . | . . . . Recycling Units . | . . . . Scanalyzers . | . . . . Garrison Access . | . . . . Terminal Hacks 6 | . 6 . . Robot Analysis 1 | . 1 . . Prototype ID Bank 3 | . 3 . . Maintenance Status 1 | . 1 . . Registered Components 1 | . 1 . . Fabricator Hacks . | . . . . Repair Station Hacks . | . . . . Recycling Unit Hacks . | . . . . Scanalyzer . | . . . . Garrison Access Hacks . | . . . . Unauthorized Hacks 7 | . 7 . . Terminals 7 | . 7 . . Botnet 7 | . 7 . . Fabricators . | . . . . Repair Stations . | . . . . Recycling Units . | . . . . Scanalyzers . | . . . . Garrison Access . | . . . . Data Cores Recovered . | . . . . Used . | . . . . Hacking Detections 7 | . 7 . . Full Trace Events . | . . . . Feedback Events . | . . . . Feedback Blocked . | . . . . Robot Schematics Acquired . | . . . . Robots Built . | . . . . Authchips . | . . . . Time . | . . . . Total Robot Build Rating . | . . . . Part Schematics Acquired . | . . . . Parts Built . | . . . . Authchips . | . . . . Time . | . . . . Total Part Build Rating . | . . . . Parts Repaired . | . . . . Time . | . . . . Parts Recycled . | . . . . Recycled Matter . | . . . . Retrieved Matter . | . . . . Retrieved Components . | . . . . Parts Scanalyzed . | . . . . Part Schematics Acquired . | . . . . Parts Damaged . | . . . . Bothacking | -11 -10 -10 -8 ------------ Run | Yrd Mat Sub Mat Used RIF Installer . | . . . . Robots Hacked . | . . . . Non-combat . | . . . . Combat . | . . . . Robot Hacks Applied . | . . . . Relay Couplers Released . | . . . . Fabnet Peak Effective % . | . . . . Robots Rewired . | . . . . Allies Hacked . | . . . . Hacks Repelled . | . . . . Allies | -11 -10 -10 -8 -------- Run | Yrd Mat Sub Mat Total Allies . | . . . . Largest Group . | . . . . Highest-Rated Group . | . . . . Highest-Rated Ally . | . . . . Total Orders . | . . . . Ally Attacks . | . . . . Total Damage . | . . . . Kills . | . . . . Allies Corrupted . | . . . . Allies Melted . | . . . . Intel | -11 -10 -10 -8 ------- Run | Yrd Mat Sub Mat Active Infowar (turns) 526 | . 189 335 2 T.N.C. 526 | . 189 335 2 Robot Analysis Total 1 | . 1 . . Derelict Logs Recovered . | . . . . Drone Launches . | . . . . Drone Recoveries . | . . . . Exploration | -11 -10 -10 -8 ------------- Run | Yrd Mat Sub Mat Turns Passed 750 | 19 394 335 2 Spaces Moved 918 | 29 589 298 2 Core 918 | 29 589 298 2 Treads . | . . . . Legs . | . . . . Wheels . | . . . . Hover . | . . . . Flight . | . . . . Fastest Speed 50 | 50 50 50 50 Average Speed 64 | 50 50 95 50 Slowest Speed 150 | 50 50 150 50 Overloaded Moves . | . . . . Propulsion Burnouts . | . . . . Robots Hopped . | . . . . Potential Cave-ins . | . . . . Cave-ins Triggered . | . . . . Exploration Rate (%) 27 | 3 90 16 2 Regions Visited 3 Branch Regions 1 Pre-discovered Areas . | . . . . Known Exits Taken 2 | . 1 1 . Unknown Exits Taken 1 | 1 . . . Scrap Searched . | . . . . Spaces Dug . | . . . . Terrain Destroyed 73 | . . 73 . Melee . | . . . . Projectile . | . . . . AOE 73 | . . 73 . Terrain Rammed . | . . . . Walls Destroyed . | . . . . Machines Disabled . | . . . . Actions | -11 -10 -10 -8 --------- Run | Yrd Mat Sub Mat Total 1023 | 33 661 327 2 Wait 49 | . 38 11 . Move 915 | 28 588 297 2 Hop . | . . . . Pick Up 11 | 5 5 1 . Fast Attach . | . . . . Attach 7 | . 5 2 . Detach 2 | . 2 . . Swap . | . . . . Drop 2 | . 2 . . Fire 37 | . 21 16 . Melee . | . . . . Ram . | . . . . Kick . | . . . . Crush . | . . . . Escape Stasis . | . . . . Rewire . | . . . . Trap . | . . . . Miscellaneous . | . . . . Route ------- -11/Scrapyard -10/Materials (discovered 6 exits: *Mat x3 / *Min x2 / *Sub) -10/Subcaves -8/Materials History --------- Turn | Location | Event 8 | -11/Scrapyard | Discovered new exit (range 16) 20 | -11/Scrapyard | Entered Materials 28 | -10/Materials | Discovered new exit (range 12) 36 | -10/Materials | Discovered new exit (range 14) 53 | -10/Materials | Identified exit to Materials 73 | -10/Materials | Identified exit to Mines 106 | -10/Materials | Discovered exit to Materials (range 14) 119 | -10/Materials | Discovered exit to Mines (range 16) 131 | -10/Materials | Central database locked down 251 | -10/Materials | Discovered exit to Materials (range 6) 323 | -10/Materials | Build established: Mutant 408 | -10/Materials | Discovered new exit (range 5) 413 | -10/Materials | Identified exit to Subcaves 414 | -10/Materials | Entered Subcaves 415 | -10/Subcaves | Approached by a straggling Scientist 430 | -10/Subcaves | A swath of the cavern ceiling suddenly collapsed 477 | -10/Subcaves | Core integrity fell below 50% 604 | -10/Subcaves | Ambushed by Subdwellers from Twisted Machinery 721 | -10/Subcaves | Discovered new exit (range 7) 738 | -10/Subcaves | Ambushed by Subdwellers from Twisted Machinery 748 | -10/Subcaves | Identified exit to Materials 749 | -10/Subcaves | Entered Materials 749 | -8/Materials | Evolved 4 slots: Utility x4 751 | -8/Materials | Self-destructed Last Messages --------------- 00520_ Subatomizers dissect the Sub. Power Source. 00541_ ZM-UWU(R) destroyed. 00553_ Acquired 4 matter. 00604_ ZV-K67(R) emerges from the Twisted Machinery. 00608_ ZV-K67(R) destroyed. 00610_ Destroyed Scrap Shield. 00610_ MB-H1E(R) destroyed. 00624_ 58-WUV(R) destroyed. 00635_ Acquired 19 matter. 00646_ Acquired 3 matter. 00721_ EXIT=FOUND 00739_ Sub. Shrapnel Launcher destroyed. 00748_ EXIT=IDENTIFIED: MATERIALS PARAMETERS=UTILITY+4 LOCATION=MATERIALS GOAL=ESCAPE 00750_ O-16 Technician: "IFF HANDSHAKE FAILED. SECURING TERMINAL." Map ----- +----------------------------------------------------+ | ?????????????????????????????????????? | | ?????????????????????????????????????? | | ?????????????????????????????????????? | | ?????????????????????????????????????? | | ?????????????????????????????????????? | | ?????????????????????????????????????? | | ??????????????a??????????????????????? | | ?????????????????????????????????????? | | ?????????????????????????????????????? | | ?????????????????????????????????????? | | ?????????????????????????????????????? | | ?????????????????????????????????????? | | ?????????????????????????????????????? | | ?????????????????????????????????????? | | ?????????????????????????????????????? | | ?????????????????????????????????????? | | ?????????????????????????????????????? | | ?????????????????????????????????????? | | ?????????????????????????????????????? | | ?????????????????????????????????????? | | ?????????????????????????????????????? | | ?????????????###############?????????? | | ??????######?# o ?????????? | | ??????# "T" # ????????? | | ??????# # ????????????? | | ??????# ]/ @ #???????????????????? | | ??????# ]/ # #???????????????????? | | ??????# /] # #???????????????????? | | ??????# !?# #???????????????????? | | ??????######?#####???????????????????? | | ?????????????????????????????????????? | | ?????????????????????????????????????? | | ?????????????????????????????????????? | | ?????????????????????????????????????? | | ?????????????????????????????????????? | | ?????????????????????????????????????? | | ?????????????????????????????????????? | | ?????????????????????????????????????? | | ?????????????????????????????????????? | | ?????????????????????????????????????? | | ?????????????????????????????????????? | | ?????????????????????????????????????? | | ?????????????????????????????????????? | | | | | | | | | | | | | | | +----------------------------------------------------+ Best States ------------- Heat Dissipation 31 Energy Generation 5 Energy Capacity 100 Matter Stores 300 Matter Capacity 300 Sight Range 16 Terrain Scan Density 10 Resistance: KI 20 Resistance: TH 20 Resistance: EX 20 Resistance: EM 20 Resistance: I 20 Resistance: S 20 Resistance: P 20 Evasion (%) 50 Offensive Hacking 10 Item Schematics ----------------- None Robot Schematics ------------------ None Fabricated ------------ Nothing Repaired ---------- Nothing Alien Tech Used ----------------- None Achievements -------------- None Challenges ------------ None Game ------ Seed InertialMasterFemtoactuators Manual? 0 Play Time 00:09:18 Cumulative 247.2 hours Start 2025.05.16 @ 20:27:56 End 2025.05.16 @ 20:37:10 Sessions 1 Manual Loads 0 Difficulty Adventurer Special Mode None Game No. 147 Rogue 94 Adventurer 53 Explorer 0 Win Type - Total 11 Types 9/0/0/2/0/0/0/0/0/0 Lore% 60 Gallery% 65 Achievement% 62 Wizard Run 0 Options --------- Layout 1 ASCII 0 Keyboard 0 Movement Mouse Keybinds 0 Fullscreen 1 Font 32/SmallcapsGlow Map View 50x35 Zoom Use 0% Tactical HUD 1 Map Filters NONE Filters NONE Steam 1 RUN: 87fd3f0c-b29f-48d7-bd28-f4cfa3247064